[Event "European Womens-ch 2025"]
[Site "Rhodes"]
[Date "2025.04.07"]
[Round "7.51"]
[White "Sivanandan, Bodhana"]
[Black "Alexandri, Dimitra"]
[Result "1-0"]
[Annotator "NA RC"]
[ECO "B52"]
[WhiteElo "2073"]
[BlackElo "1995"]
[PlyCount "131"]
[EventDate "2025.03.29"]
[EventType "swiss"]
[EventCountry "GRE"]
[SourceTitle "playchess.com"]
[Source "ChessBase"]
[SourceQuality "1"]
[TimeControl "40/5400+30:1800+30"]

1. e4 {[%emt 1:31:00]} c5 {[%emt 1:31:00]} 2. Nf3 {[%emt 0:00:30]} d6 {[%emt 0:00:30]} 3. Bb5+ {[%emt 0:00:30]} Bd7 {[%emt 0:00:30]} 4. Bxd7+ {[%emt 0:00:30]} Qxd7 {[%emt 0:00:30]} 5. c4 {[%emt 0:00:30]} Nf6 {[%emt 0:00:30]} 6. Nc3 {[%emt 0:00:30]} g6 {[%emt 0:00:30]} 7. d4 {[%emt 0:00:30]} cxd4 {[%emt 0:00:30]} 8. Nxd4 {[%emt 0:00:30]} Bg7 {[%emt 0:00:30]} 9. f3 {[%emt 0:00:30]} Qc7 {[%emt 0:00:30]} 10. Qe2 {[%emt 0:00:30]} O-O {[%emt 0:00:30]} 11. Be3 {[%emt 0:00:30]} Rc8 {[%emt 0:00:30]} 12. b3 {[%emt 0:00:30]} Qa5 {[%emt 0:00:30]} 13. Qd2 {[%emt 0:00:30]} Nc6 {[%emt 0:00:30]} 14. Rc1 {[%emt 0:00:30]} Nh5 {[%emt 0:00:30]} 15. Nce2 {[%emt 0:00:30]} Qxd2+ {[%emt 0:00:30]} 16. Kxd2 {[%emt 0:00:30]} a5 {[%emt 0:00:30]} 17. Nxc6 {[%emt 0:00:30]} bxc6 {[%emt 0:00:30]} 18. Nc3 {[%emt 0:00:30]} Bxc3+ {[%emt 0:00:30]} 19. Rxc3 {[%emt 0:00:30]} c5 {[%emt 0:00:30]} 20. Rb1 {[%emt 0:00:30]} e5 {[%emt 0:00:30]} 21. Rd3 {[%emt 0:00:30]} Rc6 {[%emt 0:00:30]} 22. Kc3 {[%emt 0:00:30]} Ng7 {[%emt 0:00:30]} 23. f4 {[%emt 0:00:30]} f6 {[%emt 0:00:30]} 24. fxe5 {[%emt 0:00:30]} dxe5 {[%emt 0:00:30]} 25. Rbd1 {[%emt 0:00:30]} Ne6 {[%emt 0:00:30]} 26. Rd6 {[%emt 0:00:30]} Raa6 {[%emt 0:00:30]} 27. Rxc6 {[%emt 0:00:30]} Rxc6 {[%emt 0:00:30]} 28. Rd7 {[%emt 0:00:30]} Ra6 {[%emt 0:00:30]} 29. a3 {[%emt 0:00:30]} Nd4 {[%emt 0:00:30]} 30. Rd5 {[%emt 0:00:30]} Rb6 {[%emt 0:00:30]} 31. Bxd4 {[%emt 0:00:30]} exd4+ {[%emt 0:00:30]} 32. Kc2 {[%emt 0:00:30]} Rc6 {[%emt 0:00:30]} 33. Kd3 {[%emt 0:00:30]} Kf7 {[%emt 0:00:30]} 34. b4 {[%emt 0:00:30]} axb4 {[%emt 0:00:30]} 35. axb4 {[%emt 0:00:30]} cxb4 {[%emt 0:00:30]} 36. Kxd4 {[%emt 0:00:30]} Ke6 {[%emt 0:00:30]} 37. Rb5 {[%emt 0:00:30]} Rd6+ {[%emt 0:00:30]} 38. Ke3 {[%emt 0:00:30]} Rd1 {[%emt 0:00:30]} 39. Rxb4 {[%emt 0:00:30]} Re1+ {[%emt 0:00:30]} 40. Kd4 {[%emt 0:00:30]} Rd1+ {[%emt 0:00:30]} 41. Kc5 {[%emt 0:30:30]} Rd8 {[%emt 0:30:30]} 42. Rb7 {[%emt 0:00:30]} Rc8+ {[%emt 0:00:30]} 43. Kb5 {[%emt 0:00:30]} Kd6 {[%emt 0:00:30]} 44. Rb6+ {[%emt 0:00:30]} Ke5 {[%emt 0:00:30]} 45. c5 {[%emt 0:00:30]} Kxe4 {[%emt 0:00:30]} 46. Rxf6 {[%emt 0:00:30]} Rb8+ {[%emt 0:00:30]} 47. Rb6 {[%emt 0:00:30]} Rc8 {[%emt 0:00:30]} 48. Re6+ {[%emt 0:00:30]} Kd5 {[%emt 0:00:30]} 49. Rd6+ {[%emt 0:00:30]} Ke5 {[%emt 0:00:30]} 50. Rd2 {[%emt 0:00:30]} Rb8+ {[%emt 0:00:30]} 51. Ka6 {[%emt 0:00:30]} Rc8 {[%emt 0:00:30]} 52. Kb6 {[%emt 0:00:30]} Rb8+ {[%emt 0:00:30]} 53. Kc7 {[%emt 0:00:30]} Rb1 {[%emt 0:00:30]} 54. c6 {[%emt 0:00:30]} Ke6 {[%emt 0:00:30]} 55. Re2+ {[%emt 0:00:30]} Kf7 {[%emt 0:00:30]} 56. Kc8 {[%emt 0:00:30]} Rc1 {[%emt 0:00:30]} 57. c7 {[%emt 0:00:30]} Kf6 {[%emt 0:00:30]} 58. Re4 {[%emt 0:00:30]} Kf5 {[%emt 0:00:30]} 59. Rd4 {[%emt 0:00:30]} Ke5 {[%emt 0:00:30]} 60. Rd2 {[%emt 0:00:30]} Ke4 {[%emt 0:00:30]} 61. Kd8 {[%emt 0:00:30]} Ke3 {[%emt 0:00:30]} 62. Rd7 {[%emt 0:00:30]} Kf2 {[%emt 0:00:30]} 63. c8=Q {[%emt 0:00:30]} Rxc8+ {[%emt 0:00:30]} 64. Kxc8 {[%emt 0:00:30]} h5 {[%emt 0:00:30]} 65. Rd2+ {[%emt 0:00:30]} Kg1 {[%emt 0:00:30]} 66. g3 {[%emt 0:00:30]} 1-0

[Event "European Womens-ch 2025"]
[Site "Rhodes"]
[Date "2025.04.07"]
[Round "7.52"]
[White "Zvereva, Marija"]
[Black "Stefanova, Antoaneta"]
[Result "0-1"]
[Annotator "RC"]
[ECO "A10"]
[WhiteElo "2033"]
[BlackElo "2426"]
[PlyCount "54"]
[EventDate "2025.03.29"]
[EventType "swiss"]
[EventCountry "GRE"]
[SourceTitle "playchess.com"]
[Source "ChessBase"]
[SourceQuality "1"]
[TimeControl "40/5400+30:1800+30"]

1. c4 {[%emt 0:03:28]} b6 {[%emt 0:02:50]} 2. Nc3 {[%emt 0:01:21]} Bb7 {[%emt 0:05:51]} 3. e3 {[%emt 0:04:15]} e5 {[%emt 0:04:18]} 4. Nf3 {[%emt 0:01:39]} e4 {[%emt 0:02:35]} 5. Ng1 {[%emt 0:00:47]} Nf6 {[%emt 0:04:09]} 6. Nge2 {[%emt 0:06:08]} Na6 {[%emt 0:09:01]} 7. d3 {[%emt 0:08:42]} Nc5 {[%emt 0:11:00]} 8. Nf4 {[%emt 0:08:23]} exd3 {[%emt 0:05:06]} 9. Nxd3 {[%emt 0:00:19]} Nce4 {[%emt 0:07:34]} 10. Qc2 {[%emt 0:06:47]} Nxc3 {[%emt 0:05:55]} 11. Qxc3 {[%emt 0:00:52]} Bd6 {[%emt 0:01:22]} 12. f3 {[%emt 0:01:08]} Nh5 {[%emt 0:04:04]} 13. Qd4 {[%emt 0:01:19]} Qe7 {[%emt 0:04:13]} 14. Bd2 {[%emt 0:02:50]} c5 {[%emt 0:01:35]} 15. Qg4 {[%emt 0:01:13]} g6 {[%emt 0:02:47]} 16. O-O-O {[%emt 0:03:52]} f5 {[%emt 0:01:05]} 17. Qh3 {[%emt 0:00:05]} O-O-O {[%emt 0:02:29]} 18. g4 {[%emt 0:02:44]} fxg4 {[%emt 0:00:59]} 19. Qxg4 {[%emt 0:00:07]} Rhf8 {[%emt 0:00:54]} 20. Bg2 {[%emt 0:02:00]} Qf7 {[%emt 0:02:28]} 21. Ne1 {[%emt 0:09:24]} Nf6 {[%emt 0:02:06]} 22. Qh4 {[%emt 0:00:06]} Be7 {[%emt 0:00:53]} 23. Qh3 {[%emt 0:10:37]} Qxc4+ {[%emt 0:01:37]} 24. Kb1 {[%emt 0:00:04]} Bd5 {[%emt 0:01:32]} 25. b3 {[%emt 0:02:37]} Qe2 {[%emt 0:00:16]} 26. Nc2 {[%emt 0:00:48]} Be6 {[%emt 0:00:52]} 27. Qg3 {[%emt 0:00:37]} Nh5 {[%emt 0:00:35]} 0-1

[Event "European Womens-ch 2025"]
[Site "Rhodes"]
[Date "2025.04.07"]
[Round "7.53"]
[White "Valkova, Angelika"]
[Black "Bochnickova, Simona"]
[Result "0-1"]
[Annotator "RC"]
[ECO "A57"]
[WhiteElo "2001"]
[BlackElo "2167"]
[PlyCount "86"]
[EventDate "2025.03.29"]
[EventType "swiss"]
[EventCountry "GRE"]
[SourceTitle "playchess.com"]
[Source "ChessBase"]
[SourceQuality "1"]
[TimeControl "40/5400+30:1800+30"]

1. d4 {[%emt 1:31:00]} Nf6 {[%emt 1:31:00]} 2. c4 {[%emt 0:00:30]} c5 {[%emt 0:00:30]} 3. d5 {[%emt 0:00:30]} b5 {[%emt 0:00:30]} 4. cxb5 {[%emt 0:00:30]} a6 {[%emt 0:00:30]} 5. b6 {[%emt 0:00:30]} e6 {[%emt 0:00:30]} 6. Nc3 {[%emt 0:00:30]} exd5 {[%emt 0:00:30]} 7. Nxd5 {[%emt 0:00:30]} Nxd5 {[%emt 0:00:30]} 8. Qxd5 {[%emt 0:00:30]} Nc6 {[%emt 0:00:30]} 9. e4 {[%emt 0:00:30]} Be7 {[%emt 0:00:30]} 10. Bc4 {[%emt 0:00:30]} O-O {[%emt 0:00:30]} 11. Nf3 {[%emt 0:00:30]} Rb8 {[%emt 0:00:30]} 12. Bd2 {[%emt 0:00:30]} Rxb6 {[%emt 0:00:30]} 13. Bc3 {[%emt 0:00:30]} d6 {[%emt 0:00:30]} 14. Qd3 {[%emt 0:00:30]} Bf6 {[%emt 0:00:30]} 15. O-O {[%emt 0:00:30]} Re8 {[%emt 0:00:30]} 16. Rfe1 {[%emt 0:00:30]} Nb4 {[%emt 0:00:30]} 17. Bxf6 {[%emt 0:00:30]} Qxf6 {[%emt 0:00:30]} 18. Qb3 {[%emt 0:00:30]} Bd7 {[%emt 0:00:30]} 19. Ng5 {[%emt 0:00:30]} d5 {[%emt 0:00:30]} 20. Bxd5 {[%emt 0:00:30]} Nxd5 {[%emt 0:00:30]} 21. Qxd5 {[%emt 0:00:30]} Bc6 {[%emt 0:00:30]} 22. Qf5 {[%emt 0:00:30]} Qxf5 {[%emt 0:00:30]} 23. exf5 {[%emt 0:00:30]} Rxe1+ {[%emt 0:00:30]} 24. Rxe1 {[%emt 0:00:30]} Rxb2 {[%emt 0:00:30]} 25. Rd1 {[%emt 0:00:30]} Rb8 {[%emt 0:00:30]} 26. h4 {[%emt 0:00:30]} h6 {[%emt 0:00:30]} 27. Rd6 {[%emt 0:00:30]} Rc8 {[%emt 0:00:30]} 28. Nh3 {[%emt 0:00:30]} c4 {[%emt 0:00:30]} 29. Nf4 {[%emt 0:00:30]} c3 {[%emt 0:00:30]} 30. Rd1 {[%emt 0:00:30]} c2 {[%emt 0:00:30]} 31. Rc1 {[%emt 0:00:30]} Ba4 {[%emt 0:00:30]} 32. Kf1 {[%emt 0:00:30]} Rd8 {[%emt 0:00:30]} 33. Ke2 {[%emt 0:00:30]} Rd1 {[%emt 0:00:30]} 34. Nd3 {[%emt 0:00:30]} Kf8 {[%emt 0:00:30]} 35. g4 {[%emt 0:00:30]} Ke7 {[%emt 0:00:30]} 36. f4 {[%emt 0:00:30]} Kd6 {[%emt 0:00:30]} 37. g5 {[%emt 0:00:30]} h5 {[%emt 0:00:30]} 38. f6 {[%emt 0:00:30]} gxf6 {[%emt 0:00:30]} 39. f5 {[%emt 0:00:30]} fxg5 {[%emt 0:00:30]} 40. hxg5 {[%emt 0:00:30]} Bb5 {[%emt 0:00:30]} 41. g6 {[%emt 0:30:30]} Bxd3+ {[%emt 0:30:30]} 42. Kf2 {[%emt 0:00:30]} Rxc1 {[%emt 0:00:30]} 43. g7 {[%emt 0:00:30]} Rg1 {[%emt 0:00:30]} 0-1

[Event "European Womens-ch 2025"]
[Site "Rhodes"]
[Date "2025.04.07"]
[Round "7.54"]
[White "Ciolacu, Alessia-Mihaela"]
[Black "Subramanian, Anusha"]
[Result "0-1"]
[Annotator "RC"]
[ECO "D20"]
[WhiteElo "2136"]
[BlackElo "2026"]
[PlyCount "78"]
[EventDate "2025.03.29"]
[EventType "swiss"]
[EventCountry "GRE"]
[SourceTitle "playchess.com"]
[Source "ChessBase"]
[SourceQuality "1"]
[TimeControl "40/5400+30:1800+30"]

1. d4 {[%emt 0:00:05]} d5 {[%emt 0:00:05]} 2. c4 {[%emt 0:00:08]} dxc4 {[%emt 0:00:04]} 3. e3 {[%emt 0:01:57]} e5 {[%emt 0:00:06]} 4. Bxc4 {[%emt 0:02:10]} exd4 {[%emt 0:00:06]} 5. exd4 {[%emt 0:00:05]} Bd6 {[%emt 0:00:05]} 6. Nc3 {[%emt 0:04:47]} Nf6 {[%emt 0:00:17]} 7. Qe2+ {[%emt 0:08:07]} Qe7 {[%emt 0:03:07]} 8. Qxe7+ {[%emt 0:00:58]} Bxe7 {[%emt 0:02:05]} 9. Nb5 {[%emt 0:02:44]} Na6 {[%emt 0:02:42]} 10. Bf4 {[%emt 0:01:55]} Bb4+ {[%emt 0:15:51]} 11. Kf1 {[%emt 0:01:15]} Ba5 {[%emt 0:07:21]} 12. Nf3 {[%emt 0:10:36]} O-O {[%emt 0:01:45]} 13. Be5 {[%emt 0:19:18]} Nd7 {[%emt 0:11:08]} 14. Rc1 {[%emt 0:09:57]} Nxe5 {[%emt 0:13:44]} 15. dxe5 {[%emt 0:00:32]} Bb6 {[%emt 0:05:18]} 16. Nbd4 {[%emt 0:07:20]} Nc5 {[%emt 0:04:08]} 17. b4 {[%emt 0:02:09]} Ne6 {[%emt 0:01:22]} 18. Nxe6 {[%emt 0:08:42]} Bxe6 {[%emt 0:00:07]} 19. Bxe6 {[%emt 0:03:43]} fxe6 {[%emt 0:00:06]} 20. Rc4 {[%emt 0:01:13]} Rad8 {[%emt 0:00:48]} 21. Ke2 {[%emt 0:00:26]} c6 {[%emt 0:01:45]} 22. a4 {[%emt 0:05:06]} a6 {[%emt 0:01:40]} 23. Rhc1 {[%emt 0:01:41]} Rd5 {[%emt 0:00:40]} 24. Re4 {[%emt 0:01:49]} h6 {[%emt 0:02:14]} 25. h4 {[%emt 0:01:00]} Rfd8 {[%emt 0:01:46]} 26. Rc2 {[%emt 0:01:35]} Rd3 {[%emt 0:03:57]} 27. Rcc4 {[%emt 0:01:13]} Ra3 {[%emt 0:00:50]} 28. Rc2 {[%emt 0:01:51]} Rxa4 {[%emt 0:00:29]} 29. Nd2 {[%emt 0:00:37]} a5 {[%emt 0:02:57]} 30. Rb2 {[%emt 0:01:22]} axb4 {[%emt 0:02:03]} 31. Nf3 {[%emt 0:00:59]} Bc5 {[%emt 0:00:40]} 32. Rc4 {[%emt 0:00:19]} Rd5 {[%emt 0:00:26]} 33. Rd2 {[%emt 0:00:45]} Be7 {[%emt 0:01:52]} 34. Rb2 {[%emt 0:00:33]} c5 {[%emt 0:00:28]} 35. Rg4 {[%emt 0:00:31]} b5 {[%emt 0:00:58]} 36. Re4 {[%emt 0:00:29]} c4 {[%emt 0:01:09]} 37. Nd4 {[%emt 0:00:19]} b3 {[%emt 0:01:37]} 38. Nc6 {[%emt 0:00:41]} Ba3 {[%emt 0:00:55]} 39. Rb1 {[%emt 0:00:32]} c3 {[%emt 0:00:29]} 0-1

[Event "European Womens-ch 2025"]
[Site "Rhodes"]
[Date "2025.04.07"]
[Round "7.55"]
[White "Berke, Ana"]
[Black "Kiousi, Panagiota"]
[Result "1-0"]
[Annotator "RC"]
[ECO "B55"]
[WhiteElo "2119"]
[BlackElo "1998"]
[PlyCount "91"]
[EventDate "2025.03.29"]
[EventType "swiss"]
[EventCountry "GRE"]
[SourceTitle "playchess.com"]
[Source "ChessBase"]
[SourceQuality "1"]
[TimeControl "40/5400+30:1800+30"]

1. e4 {[%emt 1:31:00]} c5 {[%emt 1:31:00]} 2. Nf3 {[%emt 0:00:30]} d6 {[%emt 0:00:30]} 3. d4 {[%emt 0:00:30]} cxd4 {[%emt 0:00:30]} 4. Nxd4 {[%emt 0:00:30]} Nf6 {[%emt 0:00:30]} 5. f3 {[%emt 0:00:30]} e5 {[%emt 0:00:30]} 6. Nb3 {[%emt 0:00:30]} Be6 {[%emt 0:00:30]} 7. c4 {[%emt 0:00:30]} Nbd7 {[%emt 0:00:30]} 8. Nc3 {[%emt 0:00:30]} Rc8 {[%emt 0:00:30]} 9. Be3 {[%emt 0:00:30]} Bxc4 {[%emt 0:00:30]} 10. Bxc4 {[%emt 0:00:30]} Rxc4 {[%emt 0:00:30]} 11. Qd3 {[%emt 0:00:30]} Rc8 {[%emt 0:00:30]} 12. Bxa7 {[%emt 0:00:30]} b6 {[%emt 0:00:30]} 13. O-O {[%emt 0:00:30]} Be7 {[%emt 0:00:30]} 14. a4 {[%emt 0:00:30]} O-O {[%emt 0:00:30]} 15. Rfc1 {[%emt 0:00:30]} d5 {[%emt 0:00:30]} 16. Kh1 {[%emt 0:00:30]} Rxc3 {[%emt 0:00:30]} 17. Rxc3 {[%emt 0:00:30]} Qa8 {[%emt 0:00:30]} 18. Qa6 {[%emt 0:00:30]} dxe4 19. Rac1 {[%emt 0:00:30]} exf3 20. Rxf3 {[%emt 0:00:30]} Nd5 {[%emt 0:01:30]} 21. Qb5 {[%emt 0:00:30]} e4 {[%emt 0:00:30]} 22. Rff1 {[%emt 0:00:30]} Nc5 {[%emt 0:00:30]} 23. Nxc5 {[%emt 0:00:30]} Bxc5 {[%emt 0:00:30]} 24. a5 {[%emt 0:00:30]} Nc7 {[%emt 0:00:30]} 25. Qd7 {[%emt 0:00:30]} Qxa7 {[%emt 0:00:30]} 26. b4 {[%emt 0:00:30]} Bxb4 {[%emt 0:00:30]} 27. axb6 {[%emt 0:00:30]} Qxb6 {[%emt 0:00:30]} 28. Rxc7 {[%emt 0:00:30]} Qa6 {[%emt 0:00:30]} 29. Rfc1 {[%emt 0:00:30]} Qe6 {[%emt 0:00:30]} 30. Qb5 {[%emt 0:00:30]} Bd2 {[%emt 0:00:30]} 31. Rf1 {[%emt 0:00:30]} e3 {[%emt 0:00:30]} 32. Qe2 {[%emt 0:00:30]} Qd6 {[%emt 0:00:30]} 33. Rb7 {[%emt 0:00:30]} Qd5 {[%emt 0:00:30]} 34. Ra7 {[%emt 0:00:30]} Qd4 {[%emt 0:00:30]} 35. Rb7 {[%emt 0:00:30]} f6 {[%emt 0:00:30]} 36. h3 {[%emt 0:00:30]} Rd8 {[%emt 0:00:30]} 37. Rfb1 Bc3 {[%emt 0:00:30]} 38. Re7 {[%emt 0:01:00]} Bd2 {[%emt 0:00:30]} 39. Rbb7 {[%emt 0:00:30]} f5 {[%emt 0:00:30]} 40. Qh5 {[%emt 0:00:30]} Rf8 {[%emt 0:00:30]} 41. Qg5 {[%emt 0:30:30]} Qa1+ {[%emt 0:30:30]} 42. Kh2 {[%emt 0:00:30]} Bc3 {[%emt 0:00:30]} 43. Qxe3 {[%emt 0:00:30]} h6 {[%emt 0:00:30]} 44. Ra7 {[%emt 0:00:30]} Qb2 {[%emt 0:00:30]} 45. Rab7 {[%emt 0:00:30]} Qa3 {[%emt 0:00:30]} 46. Rxg7+ 1-0

[Event "European Womens-ch 2025"]
[Site "Rhodes"]
[Date "2025.04.07"]
[Round "7.56"]
[White "Golsta, Madara"]
[Black "Paasikangas, Johanna"]
[Result "1/2-1/2"]
[Annotator "RC"]
[ECO "D43"]
[WhiteElo "1979"]
[BlackElo "2106"]
[PlyCount "166"]
[EventDate "2025.03.29"]
[EventType "swiss"]
[EventCountry "GRE"]
[SourceTitle "playchess.com"]
[Source "ChessBase"]
[SourceQuality "1"]
[TimeControl "40/5400+30:1800+30"]

1. d4 {[%emt 0:00:03]} d5 {[%emt 0:00:18]} 2. c4 {[%emt 0:00:15]} e6 {[%emt 0:00:07]} 3. Nc3 {[%emt 0:00:13]} c6 {[%emt 0:02:01]} 4. Nf3 {[%emt 0:03:03]} Nf6 {[%emt 0:05:18]} 5. Bg5 {[%emt 0:05:03]} h6 {[%emt 0:02:28]} 6. Bh4 {[%emt 0:00:18]} dxc4 {[%emt 0:09:24]} 7. a4 {[%emt 0:16:31]} Bb4 {[%emt 0:04:09]} 8. Bxf6 {[%emt 0:00:37]} Qxf6 {[%emt 0:02:56]} 9. Ne5 {[%emt 0:04:05]} O-O {[%emt 0:09:20]} 10. e3 {[%emt 0:05:18]} b5 {[%emt 0:07:00]} 11. Be2 {[%emt 0:02:59]} Bb7 {[%emt 0:05:01]} 12. Bf3 {[%emt 0:00:46]} Qe7 {[%emt 0:00:46]} 13. O-O {[%emt 0:03:44]} Bxc3 {[%emt 0:07:02]} 14. bxc3 {[%emt 0:00:11]} a6 {[%emt 0:03:00]} 15. Qc2 {[%emt 0:13:25]} Ra7 {[%emt 0:03:56]} 16. Rfb1 {[%emt 0:08:29]} Ba8 {[%emt 0:13:47]} 17. Qa2 {[%emt 0:04:35]} Qe8 {[%emt 0:02:59]} 18. Be4 {[%emt 0:09:04]} f6 {[%emt 0:02:36]} 19. Bg6 {[%emt 0:05:39]} Qe7 {[%emt 0:01:32]} 20. Ng4 {[%emt 0:00:50]} Rc7 {[%emt 0:01:28]} 21. f4 {[%emt 0:02:43]} Bb7 {[%emt 0:04:33]} 22. Qf2 {[%emt 0:04:55]} Nd7 {[%emt 0:05:12]} 23. e4 {[%emt 0:00:48]} Nb6 {[%emt 0:02:16]} 24. a5 {[%emt 0:02:56]} Nd7 {[%emt 0:00:25]} 25. Qg3 {[%emt 0:00:05]} c5 {[%emt 0:02:13]} 26. f5 {[%emt 0:02:00]} e5 {[%emt 0:01:13]} 27. d5 {[%emt 0:00:17]} Rd8 {[%emt 0:00:36]} 28. Rd1 {[%emt 0:01:05]} Nf8 {[%emt 0:00:15]} 29. Bh5 {[%emt 0:02:15]} Kh7 {[%emt 0:00:07]} 30. Ne3 {[%emt 0:00:46]} Rd6 {[%emt 0:00:18]} 31. Bg6+ {[%emt 0:00:52]} Kh8 {[%emt 0:00:24]} 32. Bh5 {[%emt 0:00:17]} Bc8 {[%emt 0:00:10]} 33. Ra2 {[%emt 0:01:42]} Bd7 {[%emt 0:00:08]} 34. Qh4 {[%emt 0:00:42]} Be8 {[%emt 0:00:41]} 35. Rb1 {[%emt 0:00:35]} Bxh5 {[%emt 0:01:11]} 36. Qxh5 {[%emt 0:00:04]} Nh7 {[%emt 0:00:59]} 37. h4 {[%emt 0:00:10]} Nf8 {[%emt 0:00:16]} 38. Kf2 {[%emt 0:00:32]} Kh7 {[%emt 0:01:05]} 39. Rh1 {[%emt 0:01:16]} Qf7 {[%emt 0:01:04]} 40. Qxf7 {[%emt 0:00:00]} Rxf7 {[%emt 0:00:00]} 41. g3 {[%emt 0:00:46]} Rd8 {[%emt 0:03:35]} 42. Rg1 {[%emt 0:14:47]} Kg8 {[%emt 0:04:04]} 43. g4 {[%emt 0:02:46]} Nh7 {[%emt 0:00:40]} 44. Kf3 {[%emt 0:00:58]} Rb7 {[%emt 0:00:45]} 45. Rb2 {[%emt 0:03:59]} Rbd7 {[%emt 0:00:14]} 46. Rbg2 {[%emt 0:01:15]} Kf7 {[%emt 0:00:13]} 47. Rb2 {[%emt 0:01:56]} Rg8 {[%emt 0:01:09]} 48. Rgb1 {[%emt 0:02:35]} Ra8 {[%emt 0:03:47]} 49. Rg2 {[%emt 0:00:30]} Ke7 {[%emt 0:00:07]} 50. Rgb2 {[%emt 0:00:37]} Rh8 {[%emt 0:06:48]} 51. Rg2 {[%emt 0:00:19]} Kf7 {[%emt 0:01:18]} 52. Rg3 {[%emt 0:01:17]} Nf8 {[%emt 0:03:23]} 53. Rbg1 {[%emt 0:00:28]} Rh7 {[%emt 0:01:31]} 54. R3g2 {[%emt 0:00:54]} Rd8 {[%emt 0:02:05]} 55. Rb2 {[%emt 0:01:01]} Nd7 {[%emt 0:00:21]} 56. Rg3 {[%emt 0:02:33]} Ke7 {[%emt 0:00:57]} 57. Rg1 {[%emt 0:00:18]} Rg8 {[%emt 0:02:04]} 58. Rbg2 {[%emt 0:00:11]} Kf7 {[%emt 0:01:16]} 59. Rb2 {[%emt 0:01:56]} h5 {[%emt 0:01:45]} 60. g5 {[%emt 0:00:15]} fxg5 {[%emt 0:01:44]} 61. hxg5 {[%emt 0:00:05]} g6 {[%emt 0:05:00]} 62. Rbg2 {[%emt 0:00:48]} Kg7 {[%emt 0:00:00]} 63. Ke2 {[%emt 0:00:36]} Rd8 {[%emt 0:00:00]} 64. f6+ {[%emt 0:00:29]} Kf7 {[%emt 0:00:00]} 65. Rh1 {[%emt 0:00:13]} Rhh8 {[%emt 0:00:00]} 66. Rgh2 {[%emt 0:00:25]} Rhf8 {[%emt 0:00:00]} 67. Ng4 {[%emt 0:00:29]} Rb8 {[%emt 0:00:00]} 68. Ne3 {[%emt 0:00:32]} Rfe8 {[%emt 0:00:15]} 69. Rg1 {[%emt 0:01:48]} Nf8 {[%emt 0:00:21]} 70. Rf2 {[%emt 0:00:26]} Nh7 {[%emt 0:00:24]} 71. Nf5 {[%emt 0:00:15]} Red8 {[%emt 0:00:55]} 72. Ne3 {[%emt 0:00:24]} Rg8 {[%emt 0:00:45]} 73. Rh2 {[%emt 0:00:17]} Rbd8 {[%emt 0:00:28]} 74. Ng4 {[%emt 0:00:32]} Rge8 {[%emt 0:00:25]} 75. Ne3 {[%emt 0:00:21]} Kg8 {[%emt 0:00:42]} 76. Rf2 {[%emt 0:00:13]} Rf8 {[%emt 0:00:05]} 77. Rh2 {[%emt 0:00:22]} Rd7 {[%emt 0:00:55]} 78. Rf2 {[%emt 0:00:21]} Rb8 {[%emt 0:00:12]} 79. Rff1 {[%emt 0:00:34]} Rdb7 {[%emt 0:00:50]} 80. Rd1 {[%emt 0:00:17]} Kf7 {[%emt 0:00:19]} 81. Rdf1 {[%emt 0:00:21]} Rh8 {[%emt 0:00:42]} 82. Rb1 {[%emt 0:00:25]} Rd7 {[%emt 0:00:33]} 83. Rbf1 {[%emt 0:00:11]} Nf8 {[%emt 0:00:13]} 1/2-1/2

[Event "European Womens-ch 2025"]
[Site "Rhodes"]
[Date "2025.04.07"]
[Round "7.57"]
[White "Kalyva, Kyriaki"]
[Black "Tsetskhladze, Mariam"]
[Result "0-1"]
[Annotator "RC"]
[ECO "E46"]
[WhiteElo "1885"]
[BlackElo "2105"]
[PlyCount "112"]
[EventDate "2025.03.29"]
[EventType "swiss"]
[EventCountry "GRE"]
[SourceTitle "playchess.com"]
[Source "ChessBase"]
[SourceQuality "1"]
[TimeControl "40/5400+30:1800+30"]

1. d4 {[%emt 0:00:03]} Nf6 {[%emt 0:00:08]} 2. c4 {[%emt 0:00:04]} e6 {[%emt 0:00:04]} 3. Nc3 {[%emt 0:00:06]} Bb4 {[%emt 0:00:05]} 4. e3 {[%emt 0:00:04]} O-O {[%emt 0:00:09]} 5. Nge2 {[%emt 0:00:03]} d5 {[%emt 0:00:18]} 6. a3 {[%emt 0:00:18]} Bd6 {[%emt 0:00:13]} 7. Ng3 {[%emt 0:00:59]} c6 {[%emt 0:04:31]} 8. cxd5 {[%emt 0:04:09]} exd5 {[%emt 0:02:38]} 9. Be2 {[%emt 0:00:36]} Re8 {[%emt 0:05:48]} 10. b4 {[%emt 0:01:52]} a6 {[%emt 0:23:12]} 11. Rb1 {[%emt 0:06:41]} g6 {[%emt 0:10:15]} 12. O-O {[%emt 0:16:53]} h5 {[%emt 0:05:08]} 13. f4 {[%emt 0:16:12]} Ng4 {[%emt 0:13:24]} 14. Rf3 {[%emt 0:03:13]} h4 {[%emt 0:05:42]} 15. Nf1 {[%emt 0:01:08]} Nh6 {[%emt 0:07:05]} 16. Qc2 {[%emt 0:05:32]} Bf5 {[%emt 0:04:53]} 17. Bd3 {[%emt 0:00:15]} Bxd3 {[%emt 0:00:33]} 18. Qxd3 {[%emt 0:00:07]} f5 {[%emt 0:00:19]} 19. h3 {[%emt 0:06:24]} Nd7 {[%emt 0:02:06]} 20. g4 {[%emt 0:02:11]} hxg3 {[%emt 0:00:48]} 21. Rxg3 {[%emt 0:00:06]} Kf7 {[%emt 0:05:35]} 22. Nh2 {[%emt 0:06:30]} Nf6 {[%emt 0:00:23]} 23. Nf3 {[%emt 0:08:56]} Ne4 {[%emt 0:00:18]} 24. Ng5+ {[%emt 0:00:15]} Nxg5 {[%emt 0:00:17]} 25. Rxg5 {[%emt 0:00:05]} Ng8 {[%emt 0:02:48]} 26. Rb2 {[%emt 0:01:07]} Be7 {[%emt 0:01:06]} 27. Rbg2 {[%emt 0:01:11]} Bxg5 {[%emt 0:00:58]} 28. fxg5 {[%emt 0:00:05]} Ne7 {[%emt 0:01:52]} 29. Ne2 {[%emt 0:00:18]} Rh8 {[%emt 0:00:28]} 30. Nf4 {[%emt 0:01:40]} Qd7 {[%emt 0:03:30]} 31. Bd2 {[%emt 0:00:29]} Nc8 {[%emt 0:00:35]} 32. Be1 {[%emt 0:00:17]} Nd6 {[%emt 0:00:26]} 33. h4 {[%emt 0:00:20]} Qe7 {[%emt 0:00:50]} 34. h5 {[%emt 0:02:07]} gxh5 {[%emt 0:00:09]} 35. g6+ {[%emt 0:01:39]} Kg7 {[%emt 0:00:19]} 36. Qe2 {[%emt 0:01:05]} h4 {[%emt 0:01:00]} 37. Qf3 {[%emt 0:05:49]} Rh6 {[%emt 0:00:31]} 38. a4 {[%emt 0:05:49]} Rah8 {[%emt 0:00:24]} 39. Qh3 {[%emt 0:00:16]} Qe4 {[%emt 0:00:35]} 40. Rg5 {[%emt 0:00:00]} Re8 {[%emt 0:00:00]} 41. Bf2 {[%emt 0:04:28]} Qe7 {[%emt 0:12:27]} 42. Nh5+ {[%emt 0:06:24]} Kg8 {[%emt 0:00:18]} 43. Bxh4 {[%emt 0:10:52]} Qxe3+ {[%emt 0:00:42]} 44. Qxe3 {[%emt 0:00:05]} Rxe3 {[%emt 0:00:02]} 45. Nf6+ {[%emt 0:01:45]} Kg7 {[%emt 0:00:11]} 46. Bf2 {[%emt 0:07:05]} Reh3 {[%emt 0:05:47]} 47. Kf1 {[%emt 0:03:16]} f4 {[%emt 0:09:38]} 48. b5 {[%emt 0:01:13]} f3 {[%emt 0:02:47]} 49. Ke1 {[%emt 0:00:23]} Rh1+ {[%emt 0:00:11]} 50. Kd2 {[%emt 0:00:17]} Rxg6 {[%emt 0:01:05]} 51. Nh5+ {[%emt 0:00:15]} Kh6 {[%emt 0:00:38]} 52. Rxg6+ {[%emt 0:00:15]} Kxg6 {[%emt 0:00:03]} 53. Nf4+ {[%emt 0:00:14]} Kf5 {[%emt 0:00:26]} 54. Ke3 {[%emt 0:00:15]} axb5 {[%emt 0:00:37]} 55. axb5 {[%emt 0:00:23]} Nxb5 {[%emt 0:00:12]} 56. Kxf3 {[%emt 0:00:06]} Rf1 {[%emt 0:00:37]} 0-1